fUSD/lending_fUSD_20260601
["ID","MTS","AMOUNT","RATE_DAILY","PERIOD"]
[423683737,1780302644000,-238.327963,0.00013699,2]
[423683739,1780302644000,-238.327963,0.00013699,2]
[423683736,1780302644000,-239.865368,0.00013699,2]
[423683735,1780302644000,-364.24573169,0.00013699,2]
[423683734,1780302644000,-500.0,0.00013699,2]
[423683732,1780302644000,-500.0,0.00013699,2]
[423683733,1780302644000,-500.0,0.00013699,2]
[423683745,1780302644000,-151.0,0.00013699,2]
[423683738,1780302644000,-238.327963,0.00013699,2]
[423683742,1780302644000,-151.0,0.00013699,2]
[423683744,1780302644000,-151.0,0.00013699,2]
[423683740,1780302644000,-238.327963,0.00013699,2]
[423683764,1780302644000,-184.52917709,0.00013699,2]
[423683762,1780302644000,-215.65015035,9.415e-05,2]
[423683763,1780302644000,-500.0,0.00013698,2]
[423683761,1780302644000,-1219.05125256,9.299e-05,2]
[423683758,1780302644000,-1946.70703075,0.00013699,2]
[423683759,1780302644000,-1946.70703075,0.00013699,2]
[423683754,1780302644000,-1946.70703075,0.00013699,2]
[423683760,1780302644000,-1762.17785366,0.00013699,2]
[423683752,1780302644000,-1946.70703075,0.00013699,2]
[423683746,1780302644000,-1946.70703075,0.00013699,2]
[423683757,1780302644000,-1946.70703075,0.00013699,2]
[423683756,1780302644000,-1946.70703075,0.00013699,2]
[423683753,1780302644000,-1946.70703075,0.00013699,2]
[423683748,1780302644000,-1946.70703075,0.00013699,2]
[423683755,1780302644000,-1946.70703075,0.00013699,2]
[423683765,1780302644000,-1253.63855966,0.00013699,2]
[423683768,1780302645000,-446.86438227,0.00013699,2]
[423683766,1780302645000,-153.34340001,9.249e-05,2]
[423683767,1780302645000,-246.20408882,0.00013699,2]
[423683781,1780302645000,-257.49000079,0.0001205,2]
[423683782,1780302645000,-268.93204312,0.0001205,2]
[423683769,1780302645000,-1420.53205311,0.00013699,2]
[423683787,1780302711000,150.99829452,9.199e-05,7]
[423683788,1780302761000,-151.0,0.00010958,7]
[423683790,1780302900000,2003.983266,9.014e-05,9]
[423683791,1780303227000,-738.878,9.014e-05,2]
[423683792,1780303240000,-250.0,9.036e-05,2]
[423683793,1780303343000,278.4,0.00030137,120]
[423683794,1780303347000,-150.57175261,9.059e-05,2]
[423683795,1780303347000,-150.0,9.103e-05,2]
[423683798,1780303347000,-3224.56775313,9.188e-05,2]
[423683799,1780303347000,-150.0,9.193e-05,2]
[423683797,1780303347000,-174.29,9.182e-05,2]
[423683801,1780303347000,-747.22709425,9.196e-05,2]
[423683800,1780303347000,-153.34340001,9.193e-05,2]
[423683796,1780303347000,-250.0,9.109e-05,2]
[423683803,1780303348000,-150.0,9.196e-05,2]
[423683804,1780303348000,-341.6060186,9.197e-05,2]
[423683802,1780303348000,-452.77290575,9.196e-05,2]
[423683805,1780303348000,-433.74232745,9.197e-05,2]
[423683807,1780303348000,-452.00666888,9.197e-05,2]
[423683808,1780303348000,-500.0,9.197e-05,2]
[423683806,1780303348000,-500.0,9.197e-05,2]
[423683811,1780303348000,-500.0,9.197e-05,2]
[423683809,1780303348000,-500.0,9.197e-05,2]
[423683810,1780303348000,-500.0,9.197e-05,2]
[423683813,1780303349000,-169.87207932,9.197e-05,2]
[423683812,1780303349000,-500.0,9.197e-05,2]
[423683814,1780303350000,-330.12792068,9.197e-05,2]
[423683815,1780303350000,-500.0,9.197e-05,2]
[423683816,1780303350000,-500.0,9.197e-05,2]
[423683817,1780303350000,-500.0,9.197e-05,2]
[423683818,1780303350000,-500.0,9.197e-05,2]
[423683820,1780303350000,-500.0,9.197e-05,2]
[423683822,1780303350000,-500.0,9.197e-05,2]
[423683821,1780303350000,-500.0,9.197e-05,2]
[423683823,1780303350000,-500.0,9.197e-05,2]
[423683824,1780303350000,-169.87207932,9.197e-05,2]
[423683819,1780303350000,-500.0,9.197e-05,2]
[423683825,1780303351000,-330.12792068,9.197e-05,2]
[423683826,1780303351000,-500.0,9.197e-05,2]
[423683827,1780303351000,-500.0,9.197e-05,2]
[423683828,1780303351000,-500.0,9.197e-05,2]
[423683830,1780303351000,-500.0,9.197e-05,2]
[423683831,1780303351000,-500.0,9.197e-05,2]
[423683832,1780303351000,-500.0,9.197e-05,2]
[423683833,1780303351000,-500.0,9.197e-05,2]
[423683829,1780303351000,-500.0,9.197e-05,2]
[423683836,1780303352000,-330.12792068,9.197e-05,2]
[423683834,1780303352000,-500.0,9.197e-05,2]
[423683835,1780303352000,-169.87207932,9.197e-05,2]
[423683837,1780303353000,-500.0,9.197e-05,2]
[423683838,1780303353000,-500.0,9.197e-05,2]
[423683839,1780303353000,-500.0,9.197e-05,2]
[423683840,1780303353000,-500.0,9.197e-05,2]
[423683841,1780303364000,500.0,9.197e-05,2]
[423683842,1780303375000,-250.0,9.198e-05,2]
[423683843,1780303375000,-1919.87207932,9.198e-05,2]
[423683844,1780303381000,300.0,9.197e-05,2]
[423683845,1780303389000,-4700.0,9.198e-05,2]
[423683846,1780303394000,-5000.0,9.198e-05,2]
[423683847,1780303399000,-166.09,9.031e-05,2]
[423683848,1780303399000,-4833.91,9.198e-05,2]
[423683849,1780303399000,-5000.0,9.198e-05,2]
[423683850,1780303400000,-5000.0,9.198e-05,2]
[423683851,1780303402000,-5000.0,9.198e-05,2]
[423683852,1780303521000,150.0,8.744e-05,2]
[423683853,1780303538000,500.0,8.959e-05,2]
[423683854,1780303562000,-591.102,9.014e-05,2]
[423683855,1780303577000,-160.0,9.098e-05,2]
[423683856,1780303581000,150.0,8.744e-05,2]
[423683857,1780303615000,-193.41943853,9.056e-05,2]
[423683858,1780303630000,-153.34340003,9.098e-05,2]
[423683859,1780303669000,-300.0,9.097e-05,2]
[423683860,1780303682000,-1340.60633135,9.098e-05,2]
[423683861,1780303710000,-150.0,9.097e-05,2]
[423683862,1780303712000,-150.0,9.098e-05,2]
[423683863,1780303749000,-489.50919813,9.097e-05,2]
[423683866,1780303763000,-290.23696942,9.097e-05,2]
[423683864,1780303763000,2000.0,0.00030136,120]
[423683865,1780303763000,-300.0,9.096e-05,2]
[423683867,1780303803000,-1200.0,9.096e-05,2]
[423683868,1780303817000,-300.0,9.096e-05,2]
[423683878,1780303831000,-300.0,9.097e-05,2]
[423683876,1780303831000,-300.0,9.096e-05,2]
[423683875,1780303831000,-900.0,9.096e-05,2]
[423683877,1780303831000,-300.0,9.096e-05,2]
[423683881,1780303831000,-454.22443613,9.097e-05,2]
[423683880,1780303831000,-500.0,9.097e-05,2]
[423683879,1780303831000,-186.14830582,9.097e-05,2]
[423683882,1780303831000,-500.0,9.097e-05,2]
[423683883,1780303831000,-500.0,9.097e-05,2]
[423683885,1780303831000,-500.0,9.097e-05,2]
[423683886,1780303831000,-500.0,9.097e-05,2]
[423683887,1780303831000,-500.0,9.097e-05,2]
[423683888,1780303831000,-500.0,9.097e-05,2]
[423683889,1780303831000,-250.0,9.097e-05,2]
[423683890,1780303831000,-500.0,9.097e-05,2]
[423683884,1780303831000,-500.0,9.097e-05,2]
[423683891,1780303831000,-500.0,9.097e-05,2]
[423683916,1780303832000,-500.0,9.097e-05,2]
[423683910,1780303832000,-500.0,9.097e-05,2]
[423683915,1780303832000,-500.0,9.097e-05,2]
[423683914,1780303832000,-500.0,9.097e-05,2]
[423683911,1780303832000,-500.0,9.097e-05,2]
[423683913,1780303832000,-500.0,9.097e-05,2]
[423683909,1780303832000,-500.0,9.097e-05,2]
[423683912,1780303832000,-500.0,9.097e-05,2]
[423683905,1780303832000,-188.81557441,9.097e-05,2]
[423683900,1780303832000,-339.75057441,9.097e-05,2]
[423683908,1780303832000,-500.0,9.097e-05,2]
[423683903,1780303832000,-311.18442559,9.097e-05,2]
[423683902,1780303832000,-500.0,9.097e-05,2]
[423683897,1780303832000,-160.24942559,9.097e-05,2]
[423683895,1780303832000,-41.77795141,9.097e-05,2]
[423683894,1780303832000,-458.22204859,9.097e-05,2]
[423683893,1780303832000,-289.69940871,9.097e-05,2]
[423683892,1780303832000,-500.0,9.097e-05,2]
[423683907,1780303832000,-500.0,9.097e-05,2]
[423683922,1780303832000,-500.0,9.097e-05,2]
[423683896,1780303832000,-500.0,9.097e-05,2]
[423683923,1780303832000,-500.0,9.097e-05,2]
[423683939,1780303832000,-1929.27379233,9.098e-05,2]
[423683938,1780303832000,-353.8945,9.098e-05,2]
[423683933,1780303832000,-500.0,9.097e-05,2]
[423683936,1780303832000,-6029.8943,9.098e-05,2]
[423683937,1780303832000,-48311.54025498,9.098e-05,2]
[423683925,1780303832000,-500.0,9.097e-05,2]
[423683934,1780303832000,-4529.42911867,9.098e-05,2]
[423683932,1780303832000,-500.0,9.097e-05,2]
[423683931,1780303832000,-500.0,9.097e-05,2]
[423683928,1780303832000,-650.0,9.097e-05,2]
[423683935,1780303832000,-9010.756,9.098e-05,2]
[423683930,1780303832000,-500.0,9.097e-05,2]
[423683920,1780303832000,-500.0,9.097e-05,2]
[423683927,1780303832000,-550.0,9.097e-05,2]
[423683921,1780303832000,-500.0,9.097e-05,2]
[423683918,1780303832000,-500.0,9.097e-05,2]
[423683919,1780303832000,-500.0,9.097e-05,2]
[423683926,1780303832000,-500.0,9.097e-05,2]
[423683924,1780303832000,-500.0,9.097e-05,2]
[423683917,1780303832000,-500.0,9.097e-05,2]
[423683929,1780303832000,-500.0,9.097e-05,2]
[423683948,1780303838000,-39766.45996109,9.098e-05,2]
[423683949,1780303838000,-14882.6840371,9.098e-05,2]
[423683950,1780303838000,-45350.0,9.098e-05,2]
[423683954,1780303838000,-383.736,9.098e-05,2]
[423683952,1780303838000,-357.03368088,9.098e-05,2]
[423683953,1780303838000,-258.6,9.098e-05,2]
[423683955,1780303838000,-1202.00276282,9.098e-05,2]
[423683951,1780303838000,-20455.77943862,9.098e-05,2]
[423683958,1780303839000,-48831.37196851,9.098e-05,2]
[423683957,1780303839000,-1318.5585896,9.098e-05,2]
[423683960,1780303839000,-2500.0,9.098e-05,2]
[423683959,1780303839000,-1276599.06501407,9.098e-05,2]
[423683993,1780303840000,-208.49589346,9.961e-05,2]
[423683996,1780303840000,-150.0,9.961e-05,2]
[423684008,1780303840000,-163.58,0.0001,2]
[423683998,1780303840000,-500.0,9.961e-05,2]
[423683999,1780303840000,-500.0,9.961e-05,2]
[423683997,1780303840000,-193.97666921,9.961e-05,2]
[423684000,1780303840000,-500.0,9.961e-05,2]
[423684005,1780303840000,-379.64477851,9.962e-05,2]
[423684003,1780303840000,-500.0,9.961e-05,2]
[423684001,1780303840000,-500.0,9.961e-05,2]
[423684007,1780303840000,-766.43666116,0.0001,2]
[423684002,1780303840000,-500.0,9.961e-05,2]
[423684006,1780303840000,-500.0,9.962e-05,2]
[423684004,1780303840000,-534.04255896,9.961e-05,2]
[423684013,1780303840000,-166.66,0.00010171,2]
[423684009,1780303840000,-515.81956451,0.0001,2]
[423684012,1780303840000,-4000.0,0.00010027,2]
[423684011,1780303840000,-250.0,0.00010007,2]
[423684016,1780303840000,-4000.0,0.00010278,2]
[423684014,1780303840000,-500.0,0.00010194,2]
[423684018,1780303840000,-9999.99,0.00010475,2]
[423684020,1780303840000,-150.99,0.00010475,2]
[423684019,1780303840000,-13692.4,0.00010475,2]
[423684017,1780303840000,-500.0,0.00010468,2]
[423684015,1780303840000,-416.65,0.00010239,2]
[423684010,1780303840000,-250.0,0.00010006,2]
[423684021,1780303840000,-299.99,0.00010475,2]
[423683987,1780303840000,-193.0,9.915e-05,2]
[423683995,1780303840000,-500.0,9.961e-05,2]
[423683971,1780303840000,-150.0,9.279e-05,2]
[423683988,1780303840000,-500.0,9.92e-05,2]
[423683961,1780303840000,-500.0,9.098e-05,2]
[423683963,1780303840000,-150.0,9.098e-05,2]
[423683964,1780303840000,-150.0,9.188e-05,2]
[423683962,1780303840000,-279.72240255,9.098e-05,2]
[423683965,1780303840000,-1836270.4567928,9.196e-05,2]
[423683968,1780303840000,-166.66,9.255e-05,2]
[423683966,1780303840000,-6280.68126124,9.199e-05,2]
[423683970,1780303840000,-160.0,9.265e-05,2]
[423683973,1780303840000,-2000.0,9.359e-05,2]
[423683972,1780303840000,-1000.0,9.358e-05,2]
[423683980,1780303840000,-150.0,9.552e-05,2]
[423683982,1780303840000,-239.0,9.643e-05,2]
[423684023,1780303840000,-4000.0,0.00010529,2]
[423683981,1780303840000,-166.66,9.56e-05,2]
[423683975,1780303840000,-500.0,9.372e-05,2]
[423683974,1780303840000,-150.0,9.37e-05,2]
[423683977,1780303840000,-555.09,9.414e-05,2]
[423683979,1780303840000,-500.0,9.525e-05,2]
[423683978,1780303840000,-150.0,9.461e-05,2]
[423683976,1780303840000,-308.94,9.401e-05,2]
[423683994,1780303840000,-150.0,9.961e-05,2]
[423683984,1780303840000,-500.0,9.646e-05,2]
[423683989,1780303840000,-150.0,9.961e-05,2]
[423683991,1780303840000,-164.88258883,9.961e-05,2]
[423683990,1780303840000,-150.0,9.961e-05,2]
[423683985,1780303840000,-166.66,9.866e-05,2]
[423683986,1780303840000,-300.0,9.915e-05,2]
[423683992,1780303840000,-150.0,9.961e-05,2]
[423684025,1780303840000,-249.99,0.00010556,2]
[423684075,1780303840000,-513.4,0.000119,2]
[423684022,1780303840000,-166.66,0.00010477,2]
[423684056,1780303840000,-515.81956451,0.00011089,2]
[423684060,1780303840000,-65220.5927913,0.00011099,2]
[423684070,1780303840000,-2000.0,0.00011699,2]
[423684062,1780303840000,-65220.5927913,0.00011099,2]
[423684061,1780303840000,-65220.5927913,0.00011099,2]
[423684063,1780303840000,-65220.5927913,0.00011106,2]
[423684059,1780303840000,-65220.59279133,0.00011099,2]
[423684064,1780303840000,-500.0,0.00011159,10]
[423684068,1780303840000,-16065.72523402,0.00011585,2]
[423684067,1780303840000,-500.0,0.00011564,2]
[423684069,1780303840000,-65220.5927913,0.00011608,2]
[423684065,1780303840000,-500.0,0.0001129,2]
[423684066,1780303840000,-500.0,0.00011562,2]
[423684082,1780303840000,-500.0,0.00012112,2]
[423684078,1780303840000,-6280.68126124,0.00012,2]
[423684072,1780303840000,-555.09,0.00011767,2]
[423684077,1780303840000,-766.43666116,0.00011999,2]
[423684073,1780303840000,-500.0,0.00011825,11]
[423684071,1780303840000,-8618.50640152,0.000117,2]
[423684074,1780303840000,-500.0,0.00011838,2]
[423684081,1780303840000,-65220.5927913,0.0001211,2]
[423684079,1780303840000,-250.0,0.0001202,2]
[423684080,1780303840000,-40532.18,0.00012055,2]
[423684085,1780303840000,-2130.19204081,0.00012329,2]
[423684084,1780303840000,-201.74,0.00012329,2]
[423684083,1780303840000,-2000.0,0.00012288,2]
[423684024,1780303840000,-2000.0,0.00010529,2]
[423684050,1780303840000,-150.0,0.00010959,2]
[423684055,1780303840000,-166.67,0.00011084,3]
[423684076,1780303840000,-42440.9532,0.00011955,2]
[423684048,1780303840000,-349.0,0.00010958,7]
[423684051,1780303840000,-152.0,0.00010984,7]
[423684027,1780303840000,-500.0,0.00010684,2]
[423684026,1780303840000,-555.09,0.00010591,2]
[423684028,1780303840000,-500.0,0.00010684,2]
[423684032,1780303840000,-500.0,0.00010684,2]
[423684033,1780303840000,-500.0,0.00010684,2]
[423684029,1780303840000,-500.0,0.00010684,2]
[423684030,1780303840000,-500.0,0.00010684,2]
[423684034,1780303840000,-500.0,0.00010684,2]
[423684035,1780303840000,-500.0,0.00010684,2]
[423684036,1780303840000,-500.0,0.00010684,2]
[423684044,1780303840000,-500.0,0.00010958,3]
[423684037,1780303840000,-472.95223692,0.00010684,2]
[423684039,1780303840000,-215.65015035,0.00010707,2]
[423684031,1780303840000,-500.0,0.00010684,2]
[423684040,1780303840000,-500.0,0.00010742,2]
[423684053,1780303840000,-500.0,0.00011016,2]
[423684038,1780303840000,-33039.3584222,0.00010698,2]
[423684054,1780303840000,-4000.0,0.0001103,2]
[423684052,1780303840000,-545.6756404,0.00011,2]
[423684046,1780303840000,-500.0,0.00010958,5]
[423684049,1780303840000,-150.0,0.00010959,2]
[423684058,1780303840000,-500.0,0.00011098,9]
[423684047,1780303840000,-500.0,0.00010958,6]
[423684043,1780303840000,-500.0,0.00010958,2]
[423684042,1780303840000,-166.66,0.00010782,2]
[423684041,1780303840000,-4000.0,0.00010779,2]
[423684045,1780303840000,-500.0,0.00010958,4]
[423684057,1780303840000,-500.0,0.00011098,8]
[423684109,1780303841000,-16065.72523402,0.00013242,2]
[423684111,1780303841000,-500.0,0.00013424,2]
[423684115,1780303841000,-500.0,0.00013424,2]
[423684117,1780303841000,-500.0,0.00013424,2]
[423684112,1780303841000,-500.0,0.00013424,2]
[423684113,1780303841000,-500.0,0.00013424,2]
[423684116,1780303841000,-500.0,0.00013424,2]
[423684114,1780303841000,-500.0,0.00013424,2]
[423684118,1780303841000,-446.0,0.00013424,2]
[423684119,1780303841000,-500.0,0.00013424,2]
[423684131,1780303841000,-500.0,0.00013424,2]
[423684122,1780303841000,-500.0,0.00013424,2]
[423684127,1780303841000,-446.0,0.00013424,2]
[423684128,1780303841000,-162.97877955,0.00013424,2]
[423684124,1780303841000,-446.0,0.00013424,2]
[423684126,1780303841000,-500.0,0.00013424,2]
[423684125,1780303841000,-500.0,0.00013424,2]
[423684130,1780303841000,-446.0,0.00013424,2]
[423684110,1780303841000,-236.21671476,0.00013343,2]
[423684123,1780303841000,-500.0,0.00013424,2]
[423684120,1780303841000,-500.0,0.00013424,2]
[423684106,1780303841000,-2130.19204081,0.00013221,2]
[423684089,1780303841000,-16065.72523402,0.00012413,2]
[423684105,1780303841000,-308.94,0.00013161,2]
[423684121,1780303841000,-446.0,0.00013424,2]
[423684093,1780303841000,-2130.19204081,0.00012775,2]
[423684086,1780303841000,-166.45,0.00012374,2]
[423684092,1780303841000,-500.0,0.0001266,2]
[423684088,1780303841000,-1000.0,0.00012391,2]
[423684087,1780303841000,-500.0,0.00012386,2]
[423684090,1780303841000,-1000.0,0.00012611,2]
[423684091,1780303841000,-65220.5927913,0.00012612,2]
[423684094,1780303841000,-1000.0,0.00012858,2]
[423684107,1780303841000,-1000.0,0.00013225,2]
[423684096,1780303841000,-384.15143428,0.00012934,2]
[423684097,1780303841000,-555.09,0.00012944,2]
[423684095,1780303841000,-2000.0,0.00012869,2]
[423684102,1780303841000,-1089.46981553,0.00013104,2]
[423684108,1780303841000,-1000.0,0.00013229,2]
[423684099,1780303841000,-2010.8172016,0.00013034,2]
[423684103,1780303841000,-65220.5927913,0.00013114,2]
[423684100,1780303841000,-500.0,0.00013044,2]
[423684104,1780303841000,-166.45,0.00013147,2]
[423684101,1780303841000,-500.0,0.00013096,2]
[423684098,1780303841000,-523.13674882,0.00013029,12]
[423684129,1780303841000,-500.0,0.00013424,2]
[423684132,1780303841000,-446.0,0.00013424,2]
[423684133,1780303841000,-500.0,0.00013424,2]
[423684159,1780303841000,-446.0,0.00013424,2]
[423684165,1780303841000,-460.0,0.00013424,2]
[423684160,1780303841000,-446.0,0.00013424,2]
[423684164,1780303841000,-446.0,0.00013424,2]
[423684162,1780303841000,-446.0,0.00013424,2]
[423684161,1780303841000,-446.0,0.00013424,2]
[423684163,1780303841000,-446.0,0.00013424,2]
[423684167,1780303841000,-500.0,0.00013425,2]
[423684177,1780303841000,-500.0,0.00013425,2]
[423684166,1780303841000,-500.0,0.00013425,2]
[423684170,1780303841000,-500.0,0.00013425,2]
[423684173,1780303841000,-500.0,0.00013425,2]
[423684168,1780303841000,-500.0,0.00013425,2]
[423684172,1780303841000,-500.0,0.00013425,2]
[423684176,1780303841000,-500.0,0.00013425,2]
[423684175,1780303841000,-500.0,0.00013425,2]
[423684174,1780303841000,-500.0,0.00013425,2]
[423684171,1780303841000,-500.0,0.00013425,2]
[423684179,1780303841000,-150.0,0.00013488,2]
[423684178,1780303841000,-179.15137862,0.00013425,2]
[423684143,1780303841000,-245.69706371,0.00013424,2]
[423684156,1780303841000,-500.0,0.00013424,2]
[423684158,1780303841000,-210.60640966,0.00013424,2]
[423684169,1780303841000,-500.0,0.00013425,2]
[423684155,1780303841000,-446.0,0.00013424,2]
[423684157,1780303841000,-446.0,0.00013424,2]
[423684135,1780303841000,-446.0,0.00013424,2]
[423684134,1780303841000,-446.0,0.00013424,2]
[423684136,1780303841000,-500.0,0.00013424,2]
[423684138,1780303841000,-446.0,0.00013424,2]
[423684139,1780303841000,-500.0,0.00013424,2]
[423684137,1780303841000,-500.0,0.00013424,2]
[423684141,1780303841000,-446.0,0.00013424,2]
[423684142,1780303841000,-500.0,0.00013424,2]
[423684144,1780303841000,-446.0,0.00013424,2]
[423684140,1780303841000,-500.0,0.00013424,2]
[423684146,1780303841000,-446.0,0.00013424,2]
[423684149,1780303841000,-446.0,0.00013424,2]
[423684153,1780303841000,-446.0,0.00013424,2]
[423684152,1780303841000,-408.67132594,0.00013424,2]
[423684147,1780303841000,-500.0,0.00013424,2]
[423684154,1780303841000,-500.0,0.00013424,2]
[423684148,1780303841000,-500.0,0.00013424,2]
[423684145,1780303841000,-500.0,0.00013424,2]
[423684151,1780303841000,-446.0,0.00013424,2]
[423684150,1780303841000,-500.0,0.00013424,2]
[423684221,1780303842000,-984.51,0.00013608,2]
[423684217,1780303842000,-150.0,0.00013605,2]
[423684219,1780303842000,-14474.46,0.00013608,2]
[423684216,1780303842000,-10000.0,0.00013598,2]
[423684215,1780303842000,-150.0,0.00013597,2]
[423684209,1780303842000,-152.594755,0.0001357,2]
[423684210,1780303842000,-150.0,0.00013578,2]
[423684206,1780303842000,-150.0,0.00013561,2]
[423684212,1780303842000,-150.0,0.00013581,2]
[423684218,1780303842000,-523.47,0.00013608,2]
[423684213,1780303842000,-150.0,0.00013581,2]
[423684214,1780303842000,-320.26685454,0.00013594,2]
[423684227,1780303842000,-150.0,0.00013628,2]
[423684224,1780303842000,-150.0,0.00013624,2]
[423684222,1780303842000,-320.26685454,0.00013609,2]
[423684223,1780303842000,-65220.5927913,0.00013616,2]
[423684226,1780303842000,-150.0,0.00013628,2]
[423684225,1780303842000,-320.26685454,0.00013624,2]
[423684231,1780303842000,-150.0,0.00013652,2]
[423684234,1780303842000,-2130.19204081,0.00013668,2]
[423684233,1780303842000,-8205.17482482,0.00013659,2]
[423684229,1780303842000,-150.0,0.00013634,2]
[423684230,1780303842000,-320.26685454,0.00013639,2]
[423684232,1780303842000,-320.26685454,0.00013654,2]
[423684208,1780303842000,-49756.0513012,0.0001357,2]
[423684220,1780303842000,-1560.7,0.00013608,2]
[423684202,1780303842000,-446.24,0.00013546,2]
[423684185,1780303842000,-150.0,0.00013488,2]
[423684211,1780303842000,-320.26685454,0.00013578,2]
[423684235,1780303842000,-150.0,0.00013669,2]
[423684184,1780303842000,-150.0,0.00013488,2]
[423684180,1780303842000,-150.0,0.00013488,2]
[423684181,1780303842000,-150.0,0.00013488,2]
[423684186,1780303842000,-150.0,0.00013488,2]
[423684187,1780303842000,-150.0,0.00013488,2]
[423684188,1780303842000,-150.0,0.00013488,2]
[423684182,1780303842000,-150.0,0.00013488,2]
[423684183,1780303842000,-150.0,0.00013488,2]
[423684190,1780303842000,-320.26685454,0.00013503,2]
[423684200,1780303842000,-150.0,0.00013535,2]
[423684189,1780303842000,-320.26685454,0.00013488,2]
[423684192,1780303842000,-20605.8482478,0.0001351,2]
[423684193,1780303842000,-150.0,0.00013511,2]
[423684194,1780303842000,-320.26685454,0.00013518,2]
[423684191,1780303842000,-17754.1743422,0.0001351,2]
[423684195,1780303842000,-3028.4636013,0.00013521,2]
[423684197,1780303842000,-150.0,0.00013524,2]
[423684196,1780303842000,-3491.4317829,0.00013521,2]
[423684198,1780303842000,-150.0,0.00013533,2]
[423684199,1780303842000,-320.26685454,0.00013533,2]
[423684201,1780303842000,-150.0,0.00013535,2]
[423684204,1780303842000,-150.0,0.00013558,2]
[423684203,1780303842000,-320.26685454,0.00013548,2]
[423684205,1780303842000,-150.0,0.00013559,2]
[423684207,1780303842000,-320.26685454,0.00013563,2]
[423684237,1780303842000,-150.0,0.0001367,2]
[423684228,1780303842000,-150.0,0.0001363,2]
[423684236,1780303842000,-320.26685454,0.00013669,2]
[423684271,1780303842000,-500.0,0.00013698,2]
[423684274,1780303842000,-500.0,0.00013698,2]
[423684284,1780303842000,-500.0,0.00013698,2]
[423684273,1780303842000,-500.0,0.00013698,2]
[423684275,1780303842000,-352.89362471,0.00013698,2]
[423684276,1780303842000,-500.0,0.00013698,2]
[423684278,1780303842000,-500.0,0.00013698,2]
[423684281,1780303842000,-500.0,0.00013698,2]
[423684283,1780303842000,-500.0,0.00013698,2]
[423684277,1780303842000,-500.0,0.00013698,2]
[423684279,1780303842000,-500.0,0.00013698,2]
[423684282,1780303842000,-500.0,0.00013698,2]
[423684280,1780303842000,-500.0,0.00013698,2]
[423684287,1780303842000,-502.32871737,0.00013698,2]
[423684285,1780303842000,-500.0,0.00013698,2]
[423684288,1780303842000,-500.0,0.00013698,2]
[423684296,1780303842000,-500.0,0.00013698,2]
[423684286,1780303842000,-500.0,0.00013698,2]
[423684290,1780303842000,-500.0,0.00013698,2]
[423684289,1780303842000,-500.0,0.00013698,2]
[423684294,1780303842000,-500.0,0.00013698,2]
[423684293,1780303842000,-500.0,0.00013698,2]
[423684291,1780303842000,-498.43141485,0.00013698,2]
[423684292,1780303842000,-500.0,0.00013698,2]
[423684295,1780303842000,-500.0,0.00013698,2]
[423684268,1780303842000,-500.0,0.00013698,2]
[423684269,1780303842000,-500.0,0.00013698,2]
[423684238,1780303842000,-150.0,0.00013675,2]
[423684272,1780303842000,-339.61379618,0.00013698,2]
[423684270,1780303842000,-500.0,0.00013698,2]
[423684239,1780303842000,-150.0,0.00013675,2]
[423684248,1780303842000,-500.0,0.00013698,2]
[423684249,1780303842000,-500.0,0.00013698,2]
[423684241,1780303842000,-150.0,0.00013675,2]
[423684245,1780303842000,-500.0,0.00013698,2]
[423684250,1780303842000,-500.0,0.00013698,2]
[423684251,1780303842000,-500.0,0.00013698,2]
[423684246,1780303842000,-500.0,0.00013698,2]
[423684243,1780303842000,-320.26685454,0.00013684,2]